bitfinex/quotes_SOLUSD_20250930
["timestamp","ask_amount","ask_price","bid_price","bid_amount"]
[1759202228072,0.2,211.27,211.22,0.72]
[1759202228481,0.2,211.27,211.21,4.7345638]
[1759202228686,1.90017505,211.25,211.22,0.72]
[1759202228874,4.93331004,211.27,211.19,0.72]
[1759202228875,1.90017505,211.23,211.19,0.72]
[1759202229179,1.90017505,211.24,211.19,0.72]
[1759202229759,1.90017505,211.24,211.19,5.4549931]
[1759202229961,1.90017505,211.24,211.2,0.72]
[1759202230159,1.90017505,211.25,211.24,77.59982495]
[1759202232400,6.63390286,211.25,211.24,77.59982495]
[1759202232700,7.30390286,211.25,211.24,77.59982495]
[1759202233674,6.63390286,211.25,211.24,77.59982495]
[1759202234082,7.30390286,211.25,211.24,77.59982495]
[1759202234396,6.63390286,211.25,211.24,77.59982495]
[1759202235195,26.0,211.25,211.24,77.59982495]
[1759202235372,27.90017505,211.25,211.24,77.59982495]
[1759202236300,28.96391941,211.25,211.24,77.59982495]
[1759202237204,33.69764722,211.25,211.24,77.59982495]
[1759202238907,34.36764722,211.25,211.24,77.59982495]
[1759202239808,33.69764722,211.25,211.24,77.59982495]
[1759202241295,47.96324123,211.25,211.24,77.59982495]
[1759202242300,26.0,211.21,211.17,52.56606681]
[1759202242508,2.96391941,211.18,211.17,52.56606681]
[1759202243212,7.69921631,211.18,211.17,52.56606681]
[1759202243795,2.96391941,211.18,211.17,53.22606681]
[1759202244338,7.69921631,211.18,211.17,53.22606681]
[1759202244787,7.69921631,211.18,211.17,52.56606681]
[1759202245202,7.69921631,211.18,211.17,53.22606681]
[1759202246816,7.69921631,211.18,211.17,52.56606681]
[1759202247926,7.69921631,211.18,211.17,53.22606681]
[1759202248718,7.69921631,211.18,211.17,52.56606681]
[1759202249505,8.36921631,211.18,211.17,52.56606681]
[1759202250108,7.69921631,211.18,211.17,52.56606681]
[1759202255125,26.0,211.18,211.17,53.22606681]
[1759202255329,11.83530028,211.24,211.17,53.22606681]
[1759202255633,2.96391941,211.21,211.18,0.66]
[1759202256514,2.96391941,211.23,211.18,0.66]
[1759202256705,36.28391941,211.23,211.18,0.66]
[1759202257313,2.96391941,211.22,211.18,0.66]
[1759202257516,30.73403923,211.24,211.18,0.66]
[1759202257806,4.73420141,211.23,211.18,0.66]
[1759202258005,2.96391941,211.22,211.18,0.66]
[1759202258323,2.96391941,211.22,211.18,5.39529157]
[1759202258501,2.96391941,211.22,211.19,0.66]
[1759202259728,38.05403952,211.24,211.19,0.66]
[1759202259909,2.96391941,211.22,211.19,53.22606681]
[1759202260109,2.96391941,211.22,211.19,52.56606681]
[1759202260324,2.96391941,211.22,211.2,0.66]
[1759202260506,2.96391941,211.22,211.2,53.22606681]
[1759202260802,2.96391941,211.22,211.21,0.66]
[1759202261631,7.69831956,211.22,211.2,52.56606681]
[1759202261848,2.96391941,211.21,211.2,53.22606681]
[1759202263807,2.96391941,211.22,211.2,53.22606681]
[1759202264025,2.96391941,211.22,211.21,0.66]
[1759202265324,2.96391941,211.24,211.21,53.22606681]
[1759202265632,2.96391941,211.24,211.22,0.66]
[1759202265813,2.96391941,211.24,211.22,52.56606681]
[1759202266017,2.96391941,211.24,211.23,0.66]
[1759202267628,3.63391941,211.24,211.22,52.56606681]
[1759202267818,2.96391941,211.23,211.22,52.56606681]
[1759202268508,28.96391941,211.23,211.22,52.56606681]
[1759202268829,34.36809542,211.23,211.22,52.56606681]
[1759202269134,33.69809542,211.23,211.22,52.56606681]
[1759202269917,30.73417601,211.23,211.22,52.56606681]
[1759202270119,33.69809542,211.23,211.22,52.56606681]
[1759202270731,2.96391941,211.23,211.22,53.22606681]
[1759202271046,36.24391941,211.23,211.22,53.22606681]
[1759202271211,40.97809542,211.23,211.22,52.56606681]
[1759202271733,40.97809542,211.23,211.22,185.56606681]
[1759202272937,55.24368943,211.23,211.22,52.56606681]
[1759202273238,58.43278738,211.23,211.22,52.56606681]
[1759202275124,70.16719337,211.23,211.22,52.56606681]
[1759202275334,30.73417601,211.23,211.22,52.56606681]
[1759202275540,66.97809542,211.23,211.22,53.27606681]
[1759202275713,66.97809542,211.23,211.22,52.56606681]
[1759202279543,63.99417601,211.23,211.22,53.27606681]
[1759202279745,66.95809542,211.23,211.22,53.27606681]
[1759202280039,66.95809542,211.23,211.22,52.56606681]
[1759202281040,63.99417601,211.23,211.22,52.56606681]
[1759202281342,66.95809542,211.23,211.22,52.56606681]
[1759202282139,70.14780021,211.23,211.22,52.56606681]
[1759202282335,66.95809542,211.23,211.22,52.56606681]
[1759202284149,70.14779706,211.23,211.22,52.56606681]
[1759202284322,66.95809542,211.23,211.22,52.56606681]
[1759202284647,33.69809542,211.23,211.22,52.56606681]
[1759202284840,66.93809542,211.23,211.22,52.56606681]
[1759202287242,33.69809542,211.23,211.22,52.56606681]
[1759202287449,66.93809542,211.23,211.22,52.56606681]
[1759202289053,30.73417601,211.23,211.22,53.27606681]
[1759202289352,66.93809542,211.23,211.22,53.27606681]
[1759202289544,17.33594802,211.23,211.22,133.71]
[1759202289749,17.33594802,211.23,211.22,133.0]
[1759202290142,17.33594802,211.23,211.22,80.21]
[1759202290342,36.20391941,211.24,211.22,80.21]
[1759202290653,2.96391941,211.24,211.23,0.71]
[1759202291859,0.2,211.27,211.23,213.21]
[1759202292064,0.2,211.27,211.24,0.71]
[1759202293545,0.2,211.27,211.25,33.24]
[1759202293738,0.2,211.27,211.26,0.71]
[1759202293942,0.2,211.27,211.26,133.71]
[1759202294933,0.2,211.27,211.26,138.44350373]
[1759202296965,0.2,211.27,211.26,133.71]
[1759202297539,0.2,211.27,211.26,138.44350373]
[1759202298361,0.2,211.3,211.27,79.3]
[1759202298559,0.2,211.3,211.28,33.24]
[1759202298741,0.2,211.3,211.28,33.96]
[1759202298943,0.2,211.3,211.28,33.24]
[1759202299154,0.2,211.3,211.29,0.72]
[1759202301551,7.49764404,211.3,211.27,212.3]
[1759202301859,1.89503638,211.29,211.27,212.3]
[1759202302160,1.89503638,211.29,211.27,213.0]
[1759202302345,2.09503638,211.3,211.28,0.7]
[1759202302542,26.2,211.3,211.29,0.7]
[1759202303240,0.2,211.3,211.29,0.7]
[1759202303842,33.44,211.34,211.33,52.89999999]
[1759202304042,33.44,211.34,211.33,33.94]
[1759202304043,0.2,211.34,211.33,33.94]
[1759202304478,0.2,211.47,211.33,33.94]
[1759202304760,0.2,211.47,211.34,0.7]
[1759202304969,0.2,211.47,211.35,33.3]
[1759202305144,0.2,211.47,211.36,17.25942467]
[1759202305346,0.2,211.47,211.37,33.3]
[1759202305542,0.2,211.47,211.37,34.0]
[1759202305761,0.2,211.47,211.38,0.7]
[1759202305978,0.2,211.47,211.39,33.3]
[1759202306154,0.2,211.47,211.39,34.0]
[1759202307059,0.2,211.47,211.39,38.73059274]
[1759202307263,2.09503638,211.47,211.39,38.73059274]
[1759202307461,0.72,211.45,211.39,38.73059274]
[1759202307656,1.89503638,211.44,211.39,34.0]
[1759202309071,7.34442119,211.45,211.39,0.7]
[1759202309367,7.34442119,211.45,211.39,34.0]
[1759202309549,0.72,211.44,211.39,33.3]
[1759202310071,0.72,211.44,211.39,38.03059274]
[1759202310275,4.72938481,211.45,211.44,52.07999999]
[1759202310473,6.62442119,211.45,211.44,52.07999999]
[1759202312268,7.27442119,211.45,211.44,52.07999999]
[1759202312856,6.62442119,211.45,211.44,52.07999999]
[1759202316477,0.2,211.46,211.44,52.07999999]
[1759202316685,2.09503638,211.46,211.44,52.77999999]
[1759202317266,0.2,211.46,211.44,52.77999999]
[1759202317784,6.82408647,211.46,211.44,52.07999999]
[1759202318791,1.89503638,211.45,211.44,52.07999999]
[1759202320868,6.62428679,211.45,211.44,52.07999999]
[1759202321285,1.89503638,211.45,211.44,52.07999999]
[1759202322397,54.0898808,211.45,211.44,52.07999999]
[1759202322894,20.2198808,211.45,211.44,52.07999999]
[1759202323104,53.4398808,211.45,211.44,52.07999999]
[1759202323793,39.84428679,211.45,211.44,52.07999999]
[1759202325091,6.62428679,211.45,211.44,52.07999999]
[1759202328096,1.89503638,211.45,211.44,52.07999999]
[1759202328297,41.49063039,211.45,211.44,52.07999999]
[1759202328481,42.14063039,211.45,211.44,52.07999999]
[1759202329299,46.8698808,211.45,211.44,52.07999999]
[1759202329480,46.2198808,211.45,211.44,52.07999999]
[1759202330887,32.62428679,211.45,211.44,52.07999999]
[1759202331092,32.62428679,211.45,211.44,52.77999999]
[1759202331407,32.62428679,211.45,211.44,52.07999999]
[1759202332083,32.62428679,211.45,211.44,52.75999999]
[1759202332699,6.62428679,211.45,211.44,52.75999999]
[1759202333005,6.62428679,211.45,211.44,52.07999999]
[1759202333211,20.8698808,211.45,211.44,52.07999999]
[1759202333502,20.2198808,211.45,211.44,52.07999999]
[1759202335002,79.4398808,211.45,211.44,52.07999999]
[1759202336005,80.0898808,211.45,211.44,52.07999999]
[1759202336179,79.4398808,211.45,211.44,52.07999999]
[1759202339704,53.4398808,211.45,211.44,52.07999999]
[1759202342696,56.61812237,211.45,211.44,52.07999999]
[1759202342898,26.0,211.42,211.41,52.07999999]
[1759202343114,62.97007276,211.42,211.41,52.07999999]
[1759202344225,81.29558825,211.42,211.41,52.07999999]
[1759202344391,81.29558825,211.42,211.36,52.07999999]
[1759202344392,26.0,211.38,211.36,52.07999999]
[1759202344592,26.0,211.38,211.34,0.68]
[1759202344593,1.89503638,211.37,211.34,0.68]
[1759202344792,1.89503638,211.35,211.32,33.2]
[1759202345089,1.89503638,211.37,211.32,33.2]
[1759202345304,27.89503638,211.37,211.33,0.68]
[1759202345502,27.89503638,211.37,211.34,33.2]
[1759202345701,1.89503638,211.39,211.35,0.68]
[1759202345913,1.89503638,211.39,211.36,33.2]
[1759202346102,1.89503638,211.39,211.37,0.68]
[1759202346812,1.89503638,211.41,211.38,33.2]
[1759202347016,27.89503638,211.42,211.39,0.68]
[1759202347612,1.89503638,211.4,211.38,33.2]
[1759202348212,1.89503638,211.4,211.39,0.68]
[1759202349742,1.89503638,211.4,211.39,52.75999999]
[1759202350030,1.89503638,211.41,211.39,52.75999999]
[1759202350237,1.89503638,211.41,211.4,0.68]
[1759202350439,6.62518159,211.41,211.4,0.68]
[1759202350821,1.89503638,211.41,211.4,0.68]
[1759202351511,3.18588052,211.43,211.41,52.07999999]
[1759202351831,1.89503638,211.45,211.42,0.68]
[1759202352210,1.89503638,211.45,211.42,33.9]
[1759202352410,1.89503638,211.44,211.43,0.68]
[1759202353016,1.89503638,211.44,211.41,33.9]
[1759202353215,1.89503638,211.42,211.41,33.22]
[1759202353830,1.89503638,211.42,211.41,33.9]
[1759202354016,1.89503638,211.42,211.41,0.68]
[1759202354920,1.89503638,211.42,211.41,133.0]
[1759202355730,6.62495786,211.42,211.41,133.0]
[1759202356026,6.62495786,211.42,211.41,133.7]
[1759202356204,1.89503638,211.42,211.41,133.7]
[1759202356610,0.2,211.47,211.46,51.87999999]
[1759202356826,26.2,211.47,211.46,51.87999999]
[1759202357033,0.2,211.47,211.46,52.57999999]
[1759202357236,26.2,211.47,211.46,52.57999999]
[1759202357629,28.09503638,211.47,211.46,52.57999999]
[1759202357828,0.2,211.47,211.46,52.57999999]
[1759202358422,0.2,211.47,211.46,185.57999999]
[1759202358642,0.2,211.47,211.46,57.30902675]
[1759202363733,30.72725244,211.54,211.53,22.72341405]
[1759202363938,33.68383838,211.54,211.53,22.72341405]
[1759202370529,32.68383838,211.54,211.53,22.72341405]
[1759202381628,29.72725244,211.54,211.53,23.43341405]
[1759202381824,32.68383838,211.54,211.53,23.43341405]
[1759202382059,32.68383838,211.54,211.53,22.72341405]
[1759202382550,32.68383838,211.54,211.53,23.43341405]
[1759202382854,32.68383838,211.54,211.53,22.72341405]
[1759202386849,29.72725244,211.54,211.53,23.43341405]
[1759202387055,32.68383838,211.54,211.53,23.43341405]
[1759202387451,32.68383838,211.54,211.53,22.72341405]
[1759202387856,29.72725244,211.54,211.53,22.72341405]
[1759202388046,32.68383838,211.54,211.53,22.72341405]
[1759202389768,32.68383838,211.54,211.53,23.43341405]
[1759202389942,28.95658594,211.54,211.53,23.43341405]
[1759202391468,25.0,211.54,211.53,23.43341405]
[1759202393041,32.68382428,211.54,211.53,23.43341405]
[1759202393855,31.68382428,211.54,211.53,23.43341405]
[1759202395058,28.72723834,211.54,211.53,23.43341405]
[1759202395375,31.68382428,211.54,211.53,23.43341405]
[1759202395671,30.68382428,211.54,211.53,23.43341405]
[1759202395867,78.08941829,211.54,211.53,22.72341405]
[1759202396467,81.27011236,211.54,211.53,22.72341405]
[1759202396666,84.2266983,211.54,211.53,22.72341405]
[1759202397446,83.2266983,211.54,211.53,22.72341405]
[1759202397975,13.59559401,211.53,211.5,22.72341405]
[1759202398143,16.55217995,211.51,211.44,133.0]
[1759202398347,2.95658594,211.45,211.43,0.71]
[1759202398648,2.95658594,211.44,211.43,80.21]
[1759202399047,2.95658594,211.44,211.43,79.5]
[1759202399749,2.95658594,211.44,211.43,80.21]
[1759202400365,7.68606002,211.44,211.43,79.5]
[1759202400679,40.84606002,211.44,211.43,79.5]
[1759202401751,37.88947408,211.44,211.43,79.5]
[1759202401959,40.84606002,211.44,211.43,79.5]
[1759202402354,54.44165403,211.44,211.43,79.5]
[1759202402684,55.09165403,211.44,211.43,79.5]
[1759202403377,26.0,211.4,211.38,0.71]
[1759202403561,2.95658594,211.39,211.38,0.71]
[1759202404673,1.95658594,211.39,211.38,0.71]
[1759202405357,33.18,211.43,211.38,0.71]
[1759202406160,2.95658594,211.44,211.38,5.44076175]
[1759202406380,2.95658594,211.46,211.4,4.73036896]
[1759202406559,2.95658594,211.46,211.41,0.71]
[1759202407061,2.95658594,211.45,211.41,0.71]
[1759202407258,4.72813238,211.5,211.42,0.71]
[1759202407457,2.95658594,211.48,211.42,0.71]
[1759202408458,7.68522999,211.48,211.42,5.43988263]
[1759202408683,7.68522999,211.48,211.43,0.71]
[1759202408858,7.68522999,211.48,211.43,213.21]
[1759202409057,2.95658594,211.49,211.44,0.71]
[1759202409257,20.0,211.6,211.44,0.71]
[1759202409258,7.68404776,211.53,211.44,213.21]
[1759202409475,31.79658594,211.53,211.45,33.89]
[1759202409780,31.79658594,211.53,211.46,0.71]
[1759202410274,30.72735219,211.54,211.46,0.71]
[1759202410491,2.95658594,211.55,211.47,4.72880313]
[1759202410695,36.13658594,211.55,211.48,33.89]
[1759202410861,36.13658594,211.55,211.49,0.71]
[1759202410862,2.95658594,211.54,211.49,0.71]
[1759202411481,2.95658594,211.54,211.48,112.68]
[1759202411482,2.95658594,211.52,211.48,112.68]
[1759202411779,2.95658594,211.52,211.49,0.71]
[1759202411949,2.95658594,211.52,211.5,0.71]
[1759202412982,2.95658594,211.54,211.51,0.71]
[1759202414059,2.95658594,211.54,211.52,0.71]
[1759202414370,28.95658594,211.54,211.53,0.71]
[1759202414680,28.95658594,211.54,211.51,0.71]
[1759202414887,2.95658594,211.53,211.51,0.71]
[1759202415184,2.95658594,211.53,211.52,0.69]
[1759202415683,2.95658594,211.53,211.52,79.5]
[1759202418088,0.65,211.53,211.52,79.5]
[1759202418292,29.60658594,211.53,211.52,79.5]
[1759202418863,34.33404776,211.53,211.52,79.5]
[1759202420268,33.26952839,211.53,211.47,0.69]
[1759202420471,4.72790884,211.51,211.47,0.69]
[1759202420670,1.89206657,211.5,211.48,0.69]
[1759202420891,1.89206657,211.5,211.48,212.5]
[1759202421085,1.89206657,211.49,211.48,212.5]
[1759202422081,75.29766058,211.49,211.44,79.5]
[1759202422274,1.89206657,211.45,211.44,79.5]
[1759202422473,1.89206657,211.48,211.44,80.16]
[1759202422685,39.80061447,211.49,211.45,0.66]
[1759202422996,39.80061447,211.49,211.46,0.66]
[1759202423370,39.80061447,211.49,211.44,79.5]
[1759202423692,39.80061447,211.49,211.47,0.66]
[1759202423871,1.89206657,211.48,211.47,0.66]
[1759202424394,6.6206461,211.48,211.47,0.66]
[1759202424689,1.89206657,211.48,211.47,0.66]
[1759202424878,27.89206657,211.48,211.47,0.66]
[1759202425084,32.6206461,211.48,211.47,0.66]
[1759202425476,32.6206461,211.48,211.45,0.66]
[1759202425678,32.6206461,211.48,211.44,79.5]
[1759202425679,1.89206657,211.46,211.44,79.5]
[1759202425885,33.16,211.47,211.44,79.5]
[1759202426176,1.89206657,211.45,211.44,79.5]
[1759202426579,6.62131698,211.45,211.44,79.5]
[1759202426781,6.62131698,211.45,211.4,0.66]
[1759202427094,1.89206657,211.42,211.4,0.66]
[1759202427278,1.89206657,211.42,211.41,0.66]
[1759202427592,1.89206657,211.42,211.39,79.5]
[1759202427793,1.89206657,211.41,211.39,213.16]
[1759202428228,1.89206657,211.4,211.39,79.5]
[1759202428797,6.62243553,211.4,211.39,79.5]
[1759202431581,11.82294721,211.46,211.39,80.16]
[1759202431782,27.89206657,211.42,211.4,0.66]
[1759202431989,61.07206657,211.42,211.41,0.66]
[1759202433111,32.62198805,211.42,211.41,0.66]
[1759202433309,65.80198805,211.42,211.41,0.66]
[1759202436393,65.80198805,211.42,211.39,80.16]
[1759202436694,1.89206657,211.4,211.39,80.16]
[1759202436906,1.89206657,211.4,211.39,79.5]
[1759202437405,1.89206657,211.4,211.39,80.16]
[1759202437905,1.89206657,211.4,211.39,79.5]
[1759202438711,1.89206657,211.4,211.39,80.16]
[1759202439911,6.62243553,211.4,211.39,79.5]
[1759202441320,20.86802954,211.4,211.39,79.5]
[1759202442213,20.21802954,211.4,211.39,79.5]
[1759202443503,53.39802954,211.4,211.39,79.5]
[1759202446111,20.21802954,211.4,211.39,79.5]
[1759202446415,53.39802954,211.4,211.39,79.5]
[1759202447892,6.62243553,211.4,211.39,79.5]
[1759202448205,39.80243553,211.4,211.39,79.5]
[1759202451125,6.62243553,211.4,211.39,79.5]
[1759202451411,39.80243553,211.4,211.39,79.5]
[1759202452319,39.80243553,211.4,211.39,80.19]
[1759202452618,39.80243553,211.4,211.39,79.5]
[1759202455799,39.80243553,211.4,211.39,80.19]
[1759202456219,27.89206657,211.4,211.39,80.19]
[1759202456819,32.62243553,211.4,211.39,80.19]
[1759202457922,30.73036896,211.4,211.39,80.19]
[1759202458238,32.62243553,211.4,211.39,80.19]
[1759202459540,1.89206657,211.42,211.39,80.19]
[1759202459819,1.89206657,211.41,211.4,0.69]
[1759202461421,6.62221178,211.41,211.4,0.69]
[1759202462517,1.89206657,211.41,211.4,0.69]
[1759202464527,30.72926978,211.45,211.41,79.5]
[1759202464826,26.0,211.43,211.42,0.69]
[1759202465124,27.89206657,211.43,211.41,79.5]
[1759202465321,1.89206657,211.42,211.41,79.5]
[1759202465751,1.89206657,211.42,211.41,80.19]
[1759202467717,27.89206657,211.43,211.41,213.19]
[1759202467916,27.89206657,211.43,211.42,0.69]
[1759202468422,33.18,211.45,211.42,80.19]
[1759202468614,1.89206657,211.44,211.43,0.69]
[1759202469830,5.07933421,211.47,211.46,79.5]
[1759202470021,1.89206657,211.49,211.46,80.19]
[1759202470208,1.89206657,211.5,211.47,0.69]
[1759202470408,42.98727507,211.51,211.47,0.69]
[1759202470733,1.89206657,211.48,211.46,79.5]
[1759202470935,75.31766058,211.47,211.46,79.5]
[1759202471110,78.50492822,211.47,211.46,79.5]
[1759202472026,83.23373135,211.47,211.41,79.5]
[1759202472227,27.89206657,211.42,211.41,79.5]
[1759202472417,64.25933421,211.42,211.41,79.5]
[1759202472620,64.90933421,211.42,211.41,79.5]
[1759202473909,69.63925569,211.42,211.41,79.5]
[1759202474528,68.98925569,211.42,211.41,79.5]
[1759202475420,67.09718912,211.42,211.41,79.5]
[1759202475615,68.98925569,211.42,211.41,79.5]
[1759202480319,70.056196,211.42,211.41,79.5]
[1759202480835,18.2155377,211.49,211.41,80.21]
[1759202481144,2.95900688,211.46,211.42,0.71]
[1759202481434,39.32825548,211.45,211.42,0.71]
[1759202481740,36.13900688,211.45,211.42,0.71]
[1759202481940,33.18,211.45,211.42,0.71]
[1759202482159,6.14825548,211.47,211.42,80.21]
[1759202482441,39.32825548,211.47,211.43,0.68]
[1759202482943,36.3692486,211.47,211.43,80.18]
[1759202483137,41.0980597,211.47,211.44,0.68]
[1759202484513,44.05706658,211.47,211.43,79.5]
[1759202484717,44.05706658,211.47,211.44,0.68]
[1759202486645,44.05706658,211.47,211.45,0.68]
[1759202487424,2.95900688,211.46,211.45,0.68]
[1759202487943,2.95900688,211.46,211.45,80.18]
[1759202488340,44.05706658,211.47,211.45,80.18]
[1759202489327,10.87706658,211.47,211.45,80.18]
[1759202489525,40.86781798,211.47,211.45,80.18]
[1759202489843,44.05706658,211.47,211.45,80.18]
[1759202491045,41.0980597,211.47,211.45,80.18]
[1759202491342,44.05706658,211.47,211.45,80.18]
[1759202491946,39.32825548,211.47,211.45,80.18]
[1759202492144,44.05714236,211.47,211.45,80.18]
[1759202492342,10.87714236,211.47,211.46,0.68]
[1759202492551,40.84789376,211.47,211.46,79.5]
[1759202492730,44.03714236,211.47,211.46,80.18]
[1759202494550,44.03714236,211.47,211.46,79.5]
[1759202496243,44.68714236,211.47,211.46,79.5]
[1759202496950,44.03714236,211.47,211.46,79.5]
[1759202498747,6.14825548,211.47,211.46,80.18]
[1759202499049,33.16,211.47,211.46,80.18]
[1759202499249,39.30825548,211.47,211.46,80.18]
[1759202500444,44.03705861,211.47,211.46,79.5]
[1759202502128,10.87705861,211.47,211.46,79.5]
[1759202502332,44.03705861,211.47,211.46,79.5]
[1759202504737,10.87705861,211.47,211.46,79.5]
[1759202504945,44.03705861,211.47,211.46,79.5]
[1759202505743,39.59559401,211.45,211.44,79.5]
[1759202505939,78.90384949,211.45,211.44,79.5]
[1759202507744,83.6330999,211.45,211.44,79.5]
[1759202511156,50.4730999,211.45,211.44,79.5]
[1759202511330,83.6330999,211.45,211.44,79.5]
[1759202515137,83.6330999,211.45,211.42,0.69]
[1759202515336,2.95900688,211.43,211.39,137.73056009]
[1759202515537,36.11900688,211.42,211.39,217.23056009]
[1759202515951,36.11900688,211.42,211.4,0.69]
[1759202516159,2.95900688,211.41,211.4,0.69]
[1759202517568,13.59559401,211.4,211.35,0.69]
[1759202517749,2.95900688,211.36,211.33,84.23191916]
[1759202518069,2.95900688,211.37,211.33,84.23191916]
[1759202518293,36.11900688,211.37,211.34,0.69]
[1759202518842,2.95900688,211.37,211.34,0.69]
[1759202519056,3.18939881,211.38,211.34,33.85]
[1759202519260,39.30840569,211.4,211.35,0.69]
[1759202519473,6.14840569,211.39,211.35,84.92147797]
[1759202519660,6.14840569,211.39,211.36,0.69]
[1759202520367,2.95900688,211.38,211.36,0.69]
[1759202520777,2.95900688,211.39,211.36,0.69]
[1759202521153,3.18939881,211.4,211.36,246.35]
[1759202521362,2.95900688,211.43,211.37,0.69]
[1759202521668,3.18939881,211.42,211.38,4.73081653]
[1759202521875,3.18939881,211.41,211.39,0.69]
[1759202522047,2.95900688,211.4,211.37,212.5]
[1759202522252,2.95900688,211.39,211.37,213.19]
[1759202522671,2.95900688,211.39,211.38,0.69]
[1759202523073,2.95900688,211.39,211.37,212.5]
[1759202523374,2.95900688,211.38,211.37,212.5]
[1759202523561,7.68982341,211.38,211.37,79.5]
[1759202524158,7.68982341,211.38,211.37,80.19]
[1759202524358,2.95900688,211.38,211.37,80.19]
[1759202525378,30.73032365,211.41,211.37,80.19]
[1759202525588,36.11900688,211.39,211.38,0.69]
[1759202525878,39.30736658,211.39,211.38,0.69]
[1759202526071,36.11900688,211.39,211.38,0.69]
[1759202526653,2.95900688,211.39,211.38,0.69]
[1759202526864,40.84939754,211.4,211.38,0.69]
[1759202527058,40.84939754,211.4,211.39,0.69]
[1759202527263,39.30698843,211.4,211.39,0.69]
[1759202527562,6.14698843,211.4,211.39,0.69]
[1759202527764,39.30698843,211.4,211.39,0.69]
[1759202528190,36.11900688,211.4,211.39,0.69]
[1759202529278,44.03735739,211.4,211.38,79.5]
[1759202529476,2.95900688,211.39,211.38,80.19]
[1759202530667,36.11900688,211.4,211.38,80.19]
[1759202530967,36.11900688,211.4,211.39,0.69]
[1759202531686,33.16,211.4,211.39,0.69]
[1759202531887,2.95900688,211.41,211.39,0.69]
[1759202532069,3.18706013,211.42,211.39,5.42050261]
[1759202532386,6.14606701,211.42,211.4,0.69]
[1759202532883,10.87599284,211.42,211.4,0.69]
[1759202533083,10.87599284,211.42,211.4,80.19]
[1759202533084,6.14606701,211.41,211.4,80.19]
[1759202533306,6.14606701,211.41,211.4,79.5]
[1759202533984,6.14606701,211.41,211.4,80.19]
[1759202534179,2.95900688,211.41,211.4,80.19]
[1759202534986,6.14606701,211.41,211.4,80.19]
[1759202535367,2.95900688,211.41,211.4,80.19]
[1759202535568,3.18706013,211.42,211.4,80.19]
[1759202535870,39.30606701,211.42,211.4,80.19]
[1759202536685,6.14606701,211.41,211.4,79.5]
[1759202538096,3.18706013,211.41,211.4,80.21]
[1759202538392,37.8899743,211.42,211.4,80.21]
[1759202538590,2.95900688,211.41,211.4,80.21]
[1759202539067,6.14606701,211.41,211.4,80.21]
[1759202539787,3.18706013,211.41,211.4,80.21]
[1759202540179,6.14606701,211.41,211.4,80.21]
[1759202541270,3.18706013,211.41,211.4,80.21]
[1759202548780,1.89342703,211.43,211.4,80.21]
[1759202548983,3.19039411,211.42,211.41,0.71]
[1759202549590,5.08382114,211.42,211.4,80.21]
[1759202549791,3.19039411,211.41,211.4,80.21]
[1759202558606,3.19039411,211.41,211.4,79.5]
[1759202559194,7.92053932,211.41,211.4,79.5]
[1759202560929,3.19039411,211.41,211.4,80.21]
[1759202561094,25.41791314,211.47,211.4,80.21]
[1759202561095,3.19176311,211.44,211.4,118.08036896]
[1759202561298,3.19176311,211.43,211.41,0.71]
[1759202561612,39.76242076,211.47,211.41,0.71]
[1759202561799,3.19152642,211.46,211.41,0.71]
[1759202562005,3.19152642,211.45,211.41,5.43995292]
[1759202562200,3.19152642,211.44,211.42,0.71]
[1759202562414,3.19152642,211.43,211.42,0.71]
[1759202562609,1.89342703,211.48,211.42,33.85]
[1759202562815,3.19102423,211.47,211.43,0.71]
[1759202563004,3.19102423,211.46,211.43,0.71]
[1759202563330,3.19102423,211.45,211.43,0.71]
[1759202563515,3.19102423,211.44,211.43,0.71]
[1759202564193,3.19102423,211.44,211.42,245.64]
[1759202564394,1.89342703,211.45,211.42,245.64]